bitfinex-derivatives/quotes_BTCF0:USTF0_20250508
["timestamp","ask_amount","ask_price","bid_price","bid_amount"]
[1746746915741,0.7554683,102880.0,102870.0,0.79371233]
[1746746916344,0.7554683,102880.0,102870.0,0.77886857]
[1746746917342,0.7554683,102880.0,102870.0,0.90416857]
[1746746918145,0.7554683,102880.0,102870.0,0.90410151]
[1746746918842,0.7554683,102880.0,102870.0,0.82274151]
[1746746919043,0.7554683,102880.0,102870.0,0.90410151]
[1746746919846,0.7554683,102880.0,102870.0,0.54330151]
[1746746920145,0.7554683,102880.0,102870.0,0.90410151]
[1746746921346,1.1162683,102880.0,102870.0,0.54330151]
[1746746921745,1.1162683,102880.0,102870.0,0.54319688]
[1746746921945,0.7554683,102880.0,102870.0,0.54319688]
[1746746922246,0.7554683,102880.0,102870.0,0.54315688]
[1746746922445,0.7554683,102880.0,102870.0,0.90395688]
[1746746923746,0.7554683,102880.0,102870.0,0.90373041]
[1746746925348,0.7554683,102880.0,102870.0,0.54294866]
[1746746926249,0.7554683,102880.0,102870.0,0.90374866]
[1746746927045,0.7554683,102880.0,102870.0,0.9037326]
[1746746927346,0.7554683,102880.0,102870.0,0.90373198]
[1746746928352,0.7578983,102880.0,102870.0,0.90373198]
[1746746930050,0.7578983,102880.0,102870.0,0.90387169]
[1746746930250,0.7578983,102880.0,102870.0,0.82255169]
[1746746930441,0.7578983,102880.0,102870.0,0.81917169]
[1746746931546,0.82935068,102880.0,102870.0,0.81917169]
[1746746931948,0.83035068,102880.0,102870.0,0.81917169]
[1746746932149,0.83235068,102880.0,102870.0,0.81917169]
[1746746932446,0.7608983,102880.0,102870.0,0.81917169]
[1746746932750,0.7608983,102880.0,102870.0,0.81901554]
[1746746933651,0.7608983,102880.0,102870.0,0.73769554]
[1746746933949,0.7608983,102880.0,102870.0,0.81897554]
[1746746936746,0.7608983,102880.0,102870.0,0.86137134]
[1746746936945,0.7608983,102880.0,102870.0,0.86137133]
[1746746937654,0.7608983,102880.0,102870.0,0.86137204]
[1746746938547,0.8036983,102880.0,102870.0,0.90197204]
[1746746943756,0.8036983,102880.0,102870.0,0.90193542]
[1746746945353,0.08893,102880.0,102870.0,0.9733878]
[1746746945551,0.00743,102880.0,102870.0,0.9733878]
[1746746945860,0.12743,102880.0,102870.0,0.9733878]
[1746746946354,0.12,102880.0,102870.0,2.45401238]
[1746746946557,0.2,102900.0,102890.0,0.2429885]
[1746746946851,0.0438,102910.0,102900.0,0.1943731]
[1746746947057,0.76574,102910.0,102900.0,0.8887511]
[1746746947257,0.80714,102910.0,102900.0,0.9301511]
[1746746948551,0.80814,102910.0,102900.0,0.9301511]
[1746746948763,0.122,102910.0,102900.0,1.1059667]
[1746746949055,0.124,102910.0,102900.0,1.1059667]
[1746746949256,0.124,102910.0,102900.0,1.10650807]
[1746746949459,0.124,102910.0,102900.0,1.10650767]
[1746746949665,0.124,102910.0,102900.0,1.00933167]
[1746746950256,0.124,102910.0,102900.0,1.00932251]
[1746746950447,0.124,102910.0,102900.0,1.01907013]
[1746746950648,0.124,102910.0,102900.0,1.0301756]
[1746746950849,0.1676,102910.0,102900.0,1.0301756]
[1746746951561,0.1646,102910.0,102900.0,1.03053558]
[1746746951760,0.1646,102910.0,102900.0,1.03153558]
[1746746952058,0.1646,102910.0,102900.0,1.18418796]
[1746746952450,0.1646,102910.0,102900.0,1.18406798]
[1746746952859,0.1646,102910.0,102900.0,1.19354183]
[1746746953654,0.1646,102910.0,102900.0,1.11234183]
[1746746953854,0.1646,102910.0,102900.0,1.12208945]
[1746746954054,0.1646,102910.0,102900.0,1.12198242]
[1746746954760,0.74654,102910.0,102900.0,1.04078242]
[1746746954964,0.78984,102910.0,102900.0,1.12198242]
[1746746955265,0.78984,102910.0,102900.0,1.12182563]
[1746746955464,0.83084,102910.0,102900.0,1.12182563]
[1746746956165,0.83084,102910.0,102900.0,1.05037325]
[1746746956361,0.83084,102910.0,102900.0,1.12182563]
[1746746956568,0.83084,102910.0,102900.0,1.11085621]
[1746746958165,0.83084,102910.0,102900.0,0.94872998]
[1746746958362,0.83084,102910.0,102900.0,1.02992998]
[1746746959668,0.83084,102910.0,102900.0,1.10138236]
[1746746960377,0.83084,102910.0,102900.0,1.11104012]
[1746746960669,0.83084,102910.0,102900.0,1.12195903]
[1746746960869,0.74654,102910.0,102900.0,1.1934115]
[1746746961771,0.78784,102910.0,102900.0,1.12195912]
[1746746962070,0.78784,102910.0,102900.0,1.1934115]
[1746746962269,0.78784,102910.0,102900.0,1.12195912]
[1746746962573,0.78784,102910.0,102900.0,1.1219522]
[1746746962756,0.78784,102910.0,102900.0,1.11104012]
[1746746964371,0.78784,102910.0,102900.0,1.1824925]
[1746746964570,0.78784,102910.0,102900.0,1.18235309]
[1746746964869,0.2059,102910.0,102900.0,1.18235309]
[1746746965072,0.1646,102910.0,102900.0,1.18235309]
[1746746965260,0.74654,102910.0,102900.0,1.11090071]
[1746746965669,0.79124,102910.0,102900.0,1.11090071]
[1746746966468,0.79124,102910.0,102900.0,1.11094711]
[1746746968374,0.79124,102910.0,102900.0,1.110881]
[1746746968678,0.79124,102910.0,102900.0,1.18233338]
[1746746968875,0.79124,102910.0,102900.0,1.03942862]
[1746746969376,0.79124,102910.0,102900.0,1.110881]
[1746746969577,0.79124,102910.0,102900.0,0.94333086]
[1746746969772,0.79124,102910.0,102900.0,1.01478324]
[1746746970075,0.79124,102910.0,102900.0,1.12863562]
[1746746970864,0.79124,102910.0,102900.0,1.12840161]
[1746746971064,0.79124,102910.0,102900.0,1.12850269]
[1746746971673,0.79124,102910.0,102900.0,1.05705031]
[1746746971874,0.79124,102910.0,102900.0,1.0570534]
[1746746973673,0.79124,102910.0,102900.0,1.05883298]
[1746746973873,0.79124,102910.0,102900.0,1.06694131]
[1746746974478,0.1746,102910.0,102900.0,1.13839369]
[1746746974979,0.2191,102910.0,102900.0,1.13839369]
[1746746975669,0.2191,102910.0,102900.0,1.13830187]
[1746746975865,0.2191,102910.0,102900.0,0.99539711]
[1746746976178,0.80104,102910.0,102900.0,1.06684949]
[1746746976375,0.87249238,102910.0,102900.0,0.73937683]
[1746746976571,1.06684658,102910.0,102900.0,0.18420373]
[1746746976770,1.06684658,102910.0,102900.0,0.45969683]
[1746746977167,0.87249238,102910.0,102900.0,0.45969683]
[1746746977375,0.87249238,102910.0,102900.0,0.45961528]
[1746746977877,0.80104,102910.0,102900.0,0.45961528]
[1746746978078,0.87249238,102910.0,102900.0,0.45961528]
[1746746978879,0.87249238,102910.0,102900.0,0.82041528]
[1746746979767,0.80104,102910.0,102900.0,0.82041528]
[1746746980169,0.80104,102910.0,102900.0,0.86171528]
[1746746982884,0.41308,102910.0,102900.0,0.86171528]
[1746746983088,0.80104,102910.0,102900.0,0.86171528]
[1746746984982,0.80104,102910.0,102900.0,0.82041528]
[1746746985487,0.80104,102910.0,102900.0,0.45961528]
[1746746986084,1.06684658,102910.0,102900.0,0.37849528]
[1746746986282,1.44764658,102910.0,102900.0,0.37849528]
[1746746986486,1.44764658,102910.0,102900.0,0.45961528]
[1746746987083,1.44764658,102910.0,102900.0,0.29161528]
[1746746987990,1.08684658,102910.0,102900.0,0.29158159]
[1746746988287,1.44764658,102910.0,102900.0,0.29158226]
[1746746988484,1.08684658,102910.0,102900.0,0.29158226]
[1746746988679,1.44764658,102910.0,102900.0,0.29158226]
[1746746989689,1.08684658,102910.0,102900.0,0.29158226]
[1746746993392,1.0153942,102910.0,102900.0,0.29158226]
[1746746993783,1.08684658,102910.0,102900.0,0.29158226]
[1746746994091,1.08684658,102910.0,102900.0,0.45958226]
[1746746995883,1.08684658,102910.0,102900.0,0.47053291]
[1746746996590,1.44764658,102910.0,102900.0,0.47053291]
[1746746996785,1.44764658,102910.0,102900.0,0.45958226]
[1746746996984,1.44764658,102910.0,102900.0,0.3789518]
[1746746997292,1.44764658,102910.0,102900.0,0.2109518]
[1746746997693,1.44764658,102910.0,102900.0,0.21076396]
[1746746997992,1.44764658,102910.0,102900.0,0.21076416]
[1746746998293,1.44764658,102910.0,102900.0,0.21066468]
[1746746998784,1.48874658,102910.0,102900.0,0.21066468]
[1746747000595,1.49116658,102910.0,102900.0,0.21066468]
[1746747001392,0.2855,102910.0,102900.0,0.39736944]
[1746747001687,0.80346,102910.0,102900.0,0.77191706]
[1746747001887,0.80346,102910.0,102900.0,0.41111706]
[1746747002080,0.9978142,102910.0,102900.0,0.33966468]
[1746747002284,0.9978142,102910.0,102900.0,0.50766468]
[1746747002684,0.8038342,102910.0,102900.0,0.50766468]
[1746747002888,1.3586142,102910.0,102900.0,0.50362427]
[1746747003089,1.43006658,102910.0,102900.0,0.45982427]
[1746747003487,1.06926658,102910.0,102900.0,0.45982427]
[1746747003693,1.43006658,102910.0,102900.0,0.45982427]
[1746747003886,1.47386658,102910.0,102900.0,0.45982427]
[1746747004087,1.47386658,102910.0,102900.0,0.37878427]
[1746747004488,1.47386658,102910.0,102900.0,0.3784879]
[1746747005290,1.47786658,102910.0,102900.0,0.2094879]
[1746747005493,1.48186658,102910.0,102900.0,0.2094879]
[1746747006294,1.48386658,102910.0,102900.0,0.2104879]
[1746747007998,1.48386658,102910.0,102900.0,0.21048379]
[1746747009890,1.48386658,102910.0,102900.0,0.21039606]
[1746747011793,1.48386658,102910.0,102900.0,0.21024037]
[1746747012892,1.48386658,102910.0,102900.0,0.25364037]
[1746747013104,1.4124142,102910.0,102900.0,0.42164037]
[1746747013495,1.4124142,102910.0,102900.0,0.41396032]
[1746747013900,1.4124142,102910.0,102900.0,0.42168608]
[1746747015300,1.0516142,102910.0,102900.0,0.42168608]
[1746747016304,0.6636542,102910.0,102900.0,0.42168608]
[1746747016602,1.0516142,102910.0,102900.0,0.42168608]
[1746747017200,1.0516142,102910.0,102900.0,0.25368722]
[1746747017801,0.8576342,102910.0,102900.0,0.25368722]
[1746747018003,1.0516142,102910.0,102900.0,0.34298722]
[1746747018205,1.0516142,102910.0,102900.0,0.51098722]
[1746747018401,0.27532,102910.0,102900.0,0.5824396]
[1746747018702,0.24152,102910.0,102900.0,0.9432396]
[1746747018893,0.01342,102910.0,102900.0,1.01467517]
[1746747019091,0.18552,102910.0,102900.0,1.01467517]
[1746747019298,0.14342,102910.0,102900.0,0.94322279]
[1746747019705,0.14342,102910.0,102900.0,0.98058829]
[1746747019908,0.13442,102910.0,102900.0,0.97958829]
[1746747020094,0.13842,102910.0,102900.0,1.08069608]
[1746747020293,0.13842,102910.0,102900.0,1.08861852]
[1746747020497,0.13742,102910.0,102900.0,1.08998563]
[1746747020701,0.13742,102910.0,102900.0,0.98116775]
[1746747021211,0.0003,102920.0,102910.0,0.1943542]
[1746747021509,0.1403,102920.0,102910.0,0.91796163]
[1746747021802,0.1403,102920.0,102910.0,0.75596163]
[1746747022115,0.1403,102920.0,102910.0,1.09697362]
[1746747022499,0.1423,102920.0,102910.0,1.09697362]
[1746747022700,0.1423,102920.0,102910.0,1.14037362]
[1746747023108,0.1433,102920.0,102910.0,1.1404106]
[1746747023607,0.13646568,102920.0,102910.0,1.1404106]
[1746747024009,0.13646568,102920.0,102910.0,1.12936163]
[1746747024506,0.13646568,102920.0,102910.0,1.29936163]
[1746747025008,0.13646568,102920.0,102910.0,1.12936163]
[1746747025208,0.101,102940.0,102930.0,0.1943165]
[1746747025411,0.141,102940.0,102930.0,1.30380181]
[1746747025604,0.141,102940.0,102930.0,1.43170181]
[1746747026112,0.141,102940.0,102930.0,1.59959445]
[1746747026612,0.141,102940.0,102930.0,1.59958823]
[1746747026812,0.141,102940.0,102930.0,1.60058823]
[1746747027009,0.141,102940.0,102930.0,1.600588]
[1746747027816,0.141,102940.0,102930.0,1.61218248]
[1746747028009,0.141,102940.0,102930.0,1.60400674]
[1746747028222,0.141,102940.0,102930.0,1.61231768]
[1746747028405,0.141,102940.0,102930.0,1.31372192]
[1746747028610,0.1832,102940.0,102930.0,1.5034998]
[1746747029015,0.2276,102940.0,102930.0,1.5034998]
[1746747029409,0.2276,102940.0,102930.0,1.50333728]
[1746747032511,0.2276,102940.0,102930.0,1.34137728]
[1746747032711,0.2276,102940.0,102930.0,1.50329728]
[1746747033410,0.61556,102940.0,102930.0,1.50329728]
[1746747034512,0.51896,102940.0,102930.0,1.50329728]
[1746747034913,0.0696102,102940.0,102930.0,1.61211516]
[1746747035107,1e-07,102940.0,102930.0,1.61211516]
[1746747035310,1e-07,102940.0,102930.0,2.37801516]
[1746747035510,1e-07,102940.0,102930.0,2.57801516]
[1746747036014,1e-07,102940.0,102930.0,2.58897401]
[1746747036215,1e-07,102940.0,102930.0,2.58931115]
[1746747036608,1e-07,102940.0,102930.0,2.58951355]
[1746747036914,1e-07,102940.0,102930.0,2.58951313]
[1746747037213,1e-07,102950.0,102940.0,0.1942976]
[1746747037409,0.38796,102960.0,102950.0,0.339979]
[1746747037614,0.001,102970.0,102960.0,0.1942599]
[1746747037908,0.0138214,102970.0,102960.0,0.87974205]
[1746747038109,1e-07,102970.0,102960.0,1.34486205]
[1746747038315,1e-07,102970.0,102960.0,1.33486205]
[1746747038614,1e-07,102970.0,102960.0,1.1452558]
[1746747039121,1e-07,102970.0,102960.0,1.3952558]
[1746747039312,1e-07,102970.0,102960.0,1.39525567]
[1746747039807,0.0010001,102970.0,102960.0,1.14525567]
[1746747040003,0.0010001,102970.0,102960.0,1.15249113]
[1746747040516,0.0010001,102970.0,102960.0,1.22655325]
[1746747040811,0.0010001,102970.0,102960.0,1.10831325]
[1746747041002,0.0887001,102970.0,102960.0,0.99057874]
[1746747041308,0.0887001,102970.0,102960.0,1.10809871]
[1746747041508,0.0887001,102970.0,102960.0,1.08827324]
[1746747041814,0.0887001,102970.0,102960.0,1.10783733]
[1746747042909,0.6706401,102970.0,102960.0,0.94607733]
[1746747043114,0.6706401,102970.0,102960.0,1.10783733]
[1746747044317,0.6706401,102970.0,102960.0,1.10780163]
[1746747045016,0.6706401,102970.0,102960.0,1.09686956]
[1746747045817,0.6706401,102970.0,102960.0,1.09786956]
[1746747046114,0.6696401,102970.0,102960.0,1.0985482]
[1746747048407,0.6259401,102970.0,102960.0,1.0985482]
[1746747048718,0.09232,102980.0,102970.0,0.194241]
[1746747049017,0.7870809,102980.0,102970.0,0.76417384]
[1746747049318,0.7870809,102980.0,102970.0,0.93217384]
[1746747049519,0.7870809,102980.0,102970.0,0.93973596]
[1746747049710,0.7870809,102980.0,102970.0,1.04855384]
[1746747049911,0.7880809,102980.0,102970.0,1.04855384]
[1746747050111,0.7880809,102980.0,102970.0,0.88055384]
[1746747050415,0.7890809,102980.0,102970.0,0.88055384]
[1746747050913,0.94212088,102980.0,102970.0,0.56335596]
[1746747051119,1.44292088,102980.0,102970.0,0.28339596]
[1746747051714,1.48592088,102980.0,102970.0,0.28339596]
[1746747051917,1.29169878,102980.0,102970.0,0.28339596]
[1746747052222,1.12512088,102980.0,102970.0,0.28339596]
[1746747053019,0.93089878,102980.0,102970.0,0.28339596]
[1746747053321,0.8220809,102980.0,102970.0,0.28339596]
[1746747053516,1.016303,102980.0,102970.0,0.28339596]
[1746747053716,0.8220809,102980.0,102970.0,0.28324891]
[1746747056622,0.8220809,102980.0,102970.0,0.64404891]
[1746747057123,0.8220809,102980.0,102970.0,0.64442925]
[1746747058017,0.8220809,102980.0,102970.0,0.64439161]
[1746747058517,0.8220809,102980.0,102970.0,0.64431007]
[1746747060521,0.8320809,102980.0,102970.0,0.79562795]
[1746747060714,0.19932,102980.0,102970.0,0.83912795]
[1746747061021,0.19932,102980.0,102970.0,0.89478039]
[1746747061220,0.19932,102980.0,102970.0,1.06284119]
[1746747061423,0.19932,102980.0,102970.0,1.06299557]
[1746747062026,0.19932,102980.0,102970.0,1.0629968]
[1746747063429,0.7440809,102980.0,102970.0,0.90947892]
[1746747063617,0.7889809,102980.0,102970.0,0.90947892]
[1746747063926,0.8334809,102980.0,102970.0,1.01831598]
[1746747064321,0.15442,102980.0,102970.0,1.01831598]
[1746747064721,0.15442,102980.0,102970.0,1.16666793]
[1746747065119,0.14758954,102980.0,102970.0,1.16633524]
[1746747065422,0.14758954,102980.0,102970.0,1.16638408]
[1746747066026,0.14758954,102980.0,102970.0,1.15536239]
[1746747067720,0.14758954,102980.0,102970.0,1.04654451]
[1746747067927,0.14758954,102980.0,102970.0,1.15636239]
[1746747068132,0.14758954,102980.0,102970.0,1.15736239]
[1746747068623,0.23538954,102980.0,102970.0,1.35397886]
[1746747069323,0.23538954,102980.0,102970.0,1.35367186]
[1746747070028,0.23538954,102980.0,102970.0,1.35385055]
[1746747070621,0.19028954,102980.0,102970.0,1.35385055]
[1746747071123,0.11933784,102980.0,102970.0,1.36489298]
[1746747071335,0.00272,102990.0,102980.0,0.1942221]
[1746747071625,0.1043106,102990.0,102980.0,0.89766563]
[1746747072127,0.1043106,102990.0,102980.0,1.06566563]
[1746747073127,0.1043106,102990.0,102980.0,1.05462323]
[1746747074030,0.1043106,102990.0,102980.0,1.05562323]
[1746747074531,0.1043106,102990.0,102980.0,1.05662323]
[1746747075130,0.1043106,102990.0,102980.0,1.33662323]
[1746747075624,0.1043106,102990.0,102980.0,1.05662323]
[1746747076923,1.33532,103000.0,102990.0,0.1942033]
[1746747077123,2.0200809,103000.0,102990.0,1.53472231]
[1746747077328,2.0200809,103000.0,102990.0,1.42590443]
[1746747077528,2.0200809,103000.0,102990.0,1.42566145]
[1746747078130,2.0200809,103000.0,102990.0,1.42566063]
[1746747078330,2.0200809,103000.0,102990.0,1.42566033]
[1746747078730,2.0200809,103000.0,102990.0,1.60566033]
[1746747079328,2.0200809,103000.0,102990.0,1.42666033]
[1746747079526,2.0200809,103000.0,102990.0,1.4267544]
[1746747080131,2.0200809,103000.0,102990.0,1.43665393]
[1746747080326,2.0200809,103000.0,102990.0,1.42862071]
[1746747080527,2.0200809,103000.0,102990.0,1.43665648]
[1746747080729,2.0200809,103000.0,102990.0,1.3288386]
[1746747080925,2.0200809,103000.0,102990.0,1.43763707]
[1746747081728,1.8261009,103000.0,102990.0,1.43763707]
[1746747081933,2.0200809,103000.0,102990.0,1.43763707]
[1746747082233,2.0200809,103000.0,102990.0,1.43740601]
[1746747082420,1.47532,103000.0,102990.0,1.76740601]
[1746747083335,1.8261009,103000.0,102990.0,1.76740601]
[1746747083831,2.0200809,103000.0,102990.0,1.43740601]
[1746747084031,2.1525809,103000.0,102990.0,1.43740601]
[1746747084233,2.1525809,103000.0,102990.0,1.26940601]
[1746747085226,2.1525809,103000.0,102990.0,1.35640601]
[1746747085429,2.1525809,103000.0,102990.0,1.43720601]
[1746747086040,2.1525809,103000.0,102990.0,1.02130601]
[1746747086343,2.1525809,103000.0,102990.0,0.85330601]
[1746747087736,2.1525809,103000.0,102990.0,0.85330409]
[1746747088433,2.1525809,103000.0,102990.0,0.77250409]
[1746747088633,2.12139878,103000.0,102990.0,0.28478668]
[1746747088843,2.61219878,103000.0,102990.0,0.28478668]
[1746747089032,2.5033809,103000.0,102990.0,0.28478668]
[1746747089235,2.5033809,103000.0,102990.0,0.29439351]
[1746747089641,2.1425809,103000.0,102990.0,0.28478668]
[1746747091442,2.1425809,103000.0,102990.0,0.20397445]
[1746747091443,2.3367653,103000.0,102990.0,0.20397445]
[1746747091742,2.44558318,103000.0,102990.0,0.28477445]
[1746747091942,2.25139878,103000.0,102990.0,0.28477445]
[1746747092442,2.25339878,103000.0,102990.0,0.28377445]
[1746747092644,2.1445809,103000.0,102990.0,0.64457445]
[1746747092839,2.1465809,103000.0,102990.0,0.64357445]
[1746747093238,2.1465809,103000.0,102990.0,0.64350664]
[1746747093435,2.1465809,103000.0,102990.0,0.56270664]
[1746747093638,2.1465809,103000.0,102990.0,0.64350664]
[1746747094942,2.1465809,103000.0,102990.0,0.6436642]
[1746747096440,2.1465809,103000.0,102990.0,0.6870642]
[1746747097441,2.1441609,103000.0,102990.0,0.6870642]
[1746747098152,2.1441609,103000.0,102990.0,0.3262642]
[1746747098347,2.1441609,103000.0,102990.0,0.6870642]
[1746747100849,2.25297878,103000.0,102990.0,0.6436642]
[1746747101850,2.1441609,103000.0,102990.0,0.6436642]
[1746747102052,2.1441609,103000.0,102990.0,0.64344556]
[1746747102243,2.25297878,103000.0,102990.0,0.64344556]
[1746747102443,2.25297878,103000.0,102990.0,0.68954556]
[1746747103847,2.25297878,103000.0,102990.0,0.64344556]
[1746747104240,2.25297878,103000.0,102990.0,0.28264556]
[1746747104241,2.61377878,103000.0,102990.0,0.28264556]
[1746747104441,2.25297878,103000.0,102990.0,0.28264556]
[1746747105348,2.44716318,103000.0,102990.0,0.20184556]
[1746747105548,2.80796318,103000.0,102990.0,0.28264556]
[1746747105849,2.80796318,103000.0,102990.0,0.2750033]
[1746747106254,2.80796318,103000.0,102990.0,0.1942033]
[1746747106546,0.1942033,102990.0,102980.0,0.2913115]
[1746747106745,1.06388208,102990.0,102980.0,0.3721115]
[1746747107547,1.06388208,102990.0,102980.0,0.2913115]
[1746747107847,1.42468208,102990.0,102980.0,0.2913115]
[1746747110549,0.9550642,102990.0,102980.0,0.2913115]
[1746747110748,1.42468208,102990.0,102980.0,0.2913115]
[1746747112149,1.42468208,102990.0,102980.0,0.1942078]
[1746747112349,1.63059996,102990.0,102980.0,0.1942078]
[1746747113049,1.64013347,102990.0,102980.0,0.1942078]
[1746747113355,0.1942221,102980.0,102970.0,0.2913444]
[1746747113557,1.46630088,102980.0,102970.0,0.2913444]
[1746747114446,0.194241,102970.0,102960.0,0.01014907]
[1746747114654,1.43171978,102970.0,102960.0,0.20440897]
[1746747115644,1.43171978,102970.0,102960.0,0.20540897]
[1746747116057,1.3229019,102970.0,102960.0,0.20540897]
[1746747116247,1.43171978,102970.0,102960.0,0.20540897]
[1746747116445,1.43171978,102970.0,102960.0,0.24980897]
[1746747117057,1.43171978,102970.0,102960.0,0.25080897]
[1746747119260,1.43171978,102970.0,102960.0,0.01214907]
[1746747119261,1.54053766,102970.0,102960.0,0.01214907]
[1746747119556,1.51421666,102970.0,102930.0,0.54264132]
[1746747119760,1.20867638,102940.0,102930.0,0.42114772]
[1746747119949,1.34867638,102940.0,102930.0,0.32399252]
[1746747120159,1.46797638,102940.0,102930.0,0.19820262]
[1746747120660,1.46797638,102940.0,102930.0,0.25420262]
[1746747121358,1.46797638,102940.0,102930.0,0.25620262]
[1746747121758,1.46797638,102940.0,102930.0,0.24920262]
[1746747121958,0.1943165,102930.0,102920.0,0.34496842]
[1746747122153,1.78951316,102930.0,102920.0,0.34496842]
[1746747122458,0.1943354,102920.0,102910.0,0.24614085]
[1746747122650,0.1943542,102910.0,102900.0,0.20252183]
[1746747122850,1.44513298,102910.0,102900.0,0.20252183]
[1746747123046,1.44513298,102910.0,102900.0,0.00815903]
[1746747123047,1.42513298,102910.0,102900.0,0.00815903]
[1746747123254,1.42513298,102910.0,102900.0,0.20253213]
[1746747123255,1.44513298,102910.0,102900.0,0.20253213]
[1746747124047,1.44613298,102910.0,102900.0,0.20253213]
[1746747124753,1.44713298,102910.0,102900.0,0.20253213]
[1746747125060,1.52797298,102910.0,102900.0,0.20253213]
[1746747125256,1.52797298,102910.0,102900.0,0.24543213]
[1746747130458,1.44713298,102910.0,102900.0,0.24543213]
[1746747130847,1.52793298,102910.0,102900.0,0.24543213]
[1746747132157,0.98317208,102910.0,102900.0,0.24543213]
[1746747132365,1.4191151,102910.0,102900.0,0.29083213]
[1746747132862,1.0683342,102910.0,102900.0,0.29083213]
[1746747133063,1.4191151,102910.0,102900.0,0.29083213]
[1746747133263,1.4191151,102910.0,102900.0,0.45883213]
[1746747134261,1.52793298,102910.0,102900.0,0.45883213]
[1746747135461,1.33395298,102910.0,102900.0,0.21905903]
[1746747135761,1.60510898,102910.0,102900.0,0.17615903]
[1746747136154,1.60510898,102910.0,102900.0,0.00815903]
[1746747136349,1.60510898,102910.0,102900.0,0.20253213]
[1746747136661,1.3991151,102910.0,102900.0,0.24633213]
[1746747136858,0.1633,102910.0,102900.0,0.75745001]
[1746747137050,0.132,102910.0,102900.0,1.08825001]
[1746747137252,0.132,102910.0,102900.0,1.36506789]
[1746747137655,0.132,102910.0,102900.0,1.25625001]
[1746747138064,0.132,102910.0,102900.0,1.14743213]
[1746747138253,0.132,102910.0,102900.0,1.25625001]
[1746747139152,0.132,102910.0,102900.0,1.00625001]
[1746747140960,0.132,102910.0,102900.0,1.11506789]
[1746747141365,0.132,102910.0,102900.0,1.19586789]
[1746747142165,0.132,102910.0,102900.0,1.08705001]
[1746747142766,0.132,102910.0,102900.0,1.19586789]
[1746747142965,0.132,102910.0,102900.0,1.08705001]
[1746747143768,0.132,102910.0,102900.0,1.09458008]
[1746747145768,0.132,102910.0,102900.0,1.08705001]
[1746747146159,0.132,102910.0,102900.0,1.00625001]
[1746747146459,0.132,102910.0,102900.0,1.08705001]
[1746747148269,0.132,102910.0,102900.0,0.97823213]
[1746747148454,0.132,102910.0,102900.0,1.08705001]
[1746747149269,0.132,102910.0,102900.0,1.00625001]
[1746747149569,0.132,102910.0,102900.0,1.08705001]
[1746747151968,0.132,102910.0,102900.0,0.92545001]
[1746747152165,0.132,102910.0,102900.0,1.00621001]
[1746747153370,0.4827809,102910.0,102900.0,1.00621001]
[1746747153571,0.4827809,102910.0,102900.0,0.89739213]
[1746747153876,0.6767609,102910.0,102900.0,1.00621001]
[1746747156470,0.7547609,102910.0,102900.0,1.00621001]
[1746747156965,0.7537609,102910.0,102900.0,1.00621001]
[1746747157272,0.7567609,102910.0,102900.0,1.00621001]
[1746747157471,1.1175609,102910.0,102900.0,0.49509213]
[1746747157667,1.46123298,102910.0,102900.0,0.49509213]
[1746747157973,1.1580609,102910.0,102900.0,0.49509213]
[1746747158471,0.7972609,102910.0,102900.0,0.49509213]
[1746747159366,0.7972609,102910.0,102900.0,0.85589213]
[1746747160368,0.7972609,102910.0,102900.0,0.89679213]
[1746747161173,1e-07,102910.0,102900.0,1.11442789]
[1746747161375,0.14,102930.0,102920.0,0.6801675]
[1746747161676,0.1223105,102950.0,102930.0,0.1943165]
[1746747161677,0.6244609,102940.0,102930.0,0.1943165]
[1746747161876,0.6244609,102940.0,102930.0,0.75093639]
[1746747161877,0.7544609,102940.0,102930.0,0.75093639]
[1746747162077,0.7544609,102940.0,102930.0,0.76891851]
[1746747162078,0.9487585,102940.0,102930.0,0.76891851]
[1746747162277,1.41837638,102940.0,102930.0,0.45057851]
[1746747162981,1.3095585,102940.0,102930.0,0.4430765]
[1746747163174,1.3115585,102940.0,102930.0,0.2750765]
[1746747163370,1.42237638,102940.0,102930.0,0.2750765]
[1746747163570,1.42237638,102940.0,102930.0,0.1943165]
[1746747164673,1.06257638,102940.0,102930.0,0.1943165]
[1746747165378,1.42337638,102940.0,102930.0,0.1943165]
[1746747166272,1.1202609,102940.0,102930.0,0.1943165]
[1746747166473,0.5654809,102940.0,102930.0,0.34413438]
[1746747166668,0.1323485,102940.0,102930.0,0.85135226]
[1746747166881,0.125,102940.0,102930.0,0.85135226]
[1746747167081,0.125,102940.0,102930.0,1.02900755]
[1746747167782,0.124,102940.0,102930.0,1.02900755]
[1746747167981,0.124,102940.0,102930.0,1.03649268]
[1746747168180,0.122,102940.0,102930.0,1.03649268]
[1746747168380,0.123,102940.0,102930.0,1.03649268]
[1746747168681,0.121,102940.0,102930.0,1.03649268]
[1746747168885,0.12,102940.0,102930.0,1.03649268]
[1746747169081,0.12,102940.0,102930.0,1.36649268]
[1746747169478,0.12,102940.0,102930.0,0.9276748]
[1746747170480,0.12,102940.0,102930.0,1.34649268]
[1746747170671,0.084399,102940.0,102930.0,1.33900755]
[1746747170872,0.00242,102950.0,102940.0,0.1942976]
[1746747171078,0.11242,102950.0,102940.0,1.28414632]
[1746747171978,0.11342,102950.0,102940.0,1.28414632]
[1746747172180,0.11342,102950.0,102940.0,1.45214632]
[1746747173284,0.11342,102950.0,102940.0,1.12214632]
[1746747173684,0.11542,102950.0,102940.0,1.12214632]
[1746747174085,0.11542,102950.0,102940.0,1.51214632]
[1746747174483,0.11342,102950.0,102940.0,1.51214632]
[1746747174687,0.11342,102950.0,102940.0,1.52349267]
[1746747176488,0.11342,102950.0,102940.0,1.51250796]
[1746747177490,0.11342,102950.0,102940.0,1.52350796]
[1746747177789,0.11342,102950.0,102940.0,1.52350825]
[1746747178696,0.11342,102950.0,102940.0,1.13350825]
[1746747178989,0.19522,102950.0,102940.0,1.13350825]
[1746747179192,0.15382,102950.0,102940.0,1.13350825]
[1746747179589,0.11342,102950.0,102940.0,1.13350825]
[1746747179888,0.11342,102950.0,102940.0,1.14840599]
[1746747180884,0.15342,102950.0,102940.0,1.54840599]
[1746747181284,0.13930039,102950.0,102940.0,1.64554599]
[1746747181683,0.13474581,102950.0,102940.0,1.47576044]
[1746747181891,0.13474581,102950.0,102940.0,2.97576044]
[1746747183294,0.13474581,102950.0,102940.0,2.97626802]
[1746747183590,0.13474581,102950.0,102940.0,2.9651407]
[1746747183987,0.13474581,102950.0,102940.0,2.7065607]
[1746747184186,0.6747609,102950.0,102940.0,2.6379607]
[1746747184387,0.7150609,102950.0,102940.0,2.6379607]
[1746747185592,0.7150609,102950.0,102940.0,2.64887325]
[1746747186593,0.4194227,102990.0,102940.0,2.64887325]
[1746747186594,0.3608,103050.0,102980.0,0.485551]
[1746747186792,0.85328807,103060.0,103050.0,0.1940902]